{"text_format":"2","workbook":"xlsx","n_sheets":27,"sheets":["変更履歴","一覧","送信依頼API","文面構成","ヘッダー","フッター","パスワードリセット","メールアドレス変更","車庫証明申請受付","定期券再発行申請受付","シール再発行申請受付","車両番号・防犯登録番号変更受付","車両番号・防犯登録番号変更完了","利用者情報変更受付","利用者情報変更完了","プラン変更受付","プラン変更完了","解約申請","解約承認","契約期間満了","申込申請","申込受付","申込承認","問い合わせ受付","口座登録催促","口座振替登録失敗","口座振替・未納者通知"],"not_rendered":{"charts":0,"images":0,"macros":0,"external_links":0,"defined_names":23,"comments":0,"pivot_tables":0},"unopened":[],"bounds":{"document_bytes":16777216,"sheet_cells":100000,"run_cost":"one","rows_first":2000,"rows_last":500,"rows_between":2000,"halvings":0,"cell_chars":16384,"cell_head_chars":4096},"cells_cut":0,"cells_raw":0,"read":"whole","date_system":"1900"}

{"sheet":"変更履歴","index":0,"n_rows":8,"n_cols":5,"rows_kept":8,"cut":false,"hidden":false,"merged":[]}
["#","日付","変更者","変更箇所","備考"]
[{"$f":"ROW()-1","v":1},"2023-09-11","岩渕","設計書新規作成"]
[2,"2023-09-27","岸本","一部入力","黄タグ"]
[3,"2023-12-04","岩渕","振替頻度変更をプラン変更に修正"]
[4]
[5]
[6]
[7]

{"sheet":"一覧","index":1,"n_rows":28,"n_cols":8,"rows_kept":28,"cut":false,"hidden":false,"merged":[]}
["#","名称","送信タイミング","タイトル","リンク","API","課題","備考"]
[{"$f":"ROW()-1","v":1},"パスワードリセット","パスワードリセット開始時","パスワードリセットのご案内",{"$f":"IF(ISREF(INDIRECT(B2&\"!a1\")),HYPERLINK(\"#\"&\"'\"&B2&\"'\"&\"!a1\",\"■\"),\"\")","v":"■"}]
[{"$f":"ROW()-1","v":2},"メールアドレス変更","メールアドレス変更開始時","メールアドレス変更のご案内","■"]
[{"$f":"ROW()-1","v":3},"解約申請",null,"【自動返信】解約申請受付のお知らせ","■"]
[4,"解約承認",null,"解約申請完了 月極定期駐車場ナビ","■","〇"]
[5,"契約期間満了",null,"契約期間満了のお知らせ","■"]
[6,"車庫証明申請受付",null,"車庫証明申請受付のお知らせ","■"]
[7,"定期券再発行申請受付",null,"定期券再発行申請受付のお知らせ","■"]
[8,"シール再発行申請受付",null,"シール再発行申請受付のお知らせ","■"]
[9,"プラン変更申請受付",null,"####TODO",""]
[10,"車両番号・防犯登録番号変更受付",null,"車両番号・防犯登録番号変更受付のお知らせ","■"]
[11,"車両番号・防犯登録番号変更完了",null,"車両番号・防犯登録番号変更完了のお知らせ","■","〇"]
[12,"利用者情報変更受付",null,"利用者情報変更受付のお知らせ","■"]
[13,"利用者情報変更完了",null,"利用者情報変更完了のお知らせ","■","〇"]
[14,"プラン変更受付",null,"プラン変更受付のお知らせ","■"]
[15,"プラン変更完了",null,"プラン変更完了のお知らせ","■","〇"]
[16,"問い合わせ受付",null,"【自動返信】[月極定期駐車場ナビ]お問い合わせありがとうございます。","■"]
[17,"申込申請",null,"【自動返信】月極定期駐車場ナビ お申込ありがとうございます。","■",null,"赤画面で送信するはずなので、不要だと思われる。","自動承認の場合このメールは不要？"]
[18,"申込受付",null,"【利用確認事項】申込受付 月極定期駐車場ナビ","■","〇","日割り分の計算と入金予定\n「～までに～円振り込んでください」の計算方法（営業日）\n定期券の選択とは？\nプランとは？「JR桂川駅西口バイク6200大型バイク」を出す？"]
[19,"申込承認",null,"【定期利用承認】申込承認 月極定期駐車場ナビ","■","〇"]
[20,"口座登録催促","定期的（1Wごとに確認後）","振替口座登録のお願い","■"]
[21,"口座振替登録失敗","失敗検知時","振替口座登録失敗のお知らせ","■"]
[22,"定期選考_一斉通知","定期選考通知対象者選択時","####TODO","","〇"]
[23,"定期選考_当選のお知らせ","定期選考承認時","####TODO","","〇"]
[24,"定期選考_落選のお知らせ","定期選考承認時","####TODO","","〇"]
[25,"口座振替・未納者通知","１時間おきに対象抽出","####TODO","■"]
[26,null,null,null,""]
[27,null,null,null,""]

{"sheet":"送信依頼API","index":2,"n_rows":22,"n_cols":14,"rows_kept":22,"cut":false,"hidden":false,"merged":[]}
["■概要"]
[null,"KINTONE側のアクション等でメール送信する場合に使うAPI"]
[null,"APIを使うことで、MyPageサーバーのメール送信キューに登録する。"]
[null,"基本的には即時送信される。（大量にキューに登録されいた場合は順に送信されるので遅延が発生するが、そんな状況にはならない。）"]
[]
["■仕様"]
[null,"・URL"]
[null,null,"https://------------------/api-email/send"]
[null,"・METHOD"]
[null,null,"POST"]
[null,"・形式"]
[null,null,"JSON形式でHTTPのボディ部に設定"]
[]
[null,"・必須パラメータ"]
[null,null,"email_id",null,null,"メール名称（「申込承認」などの名称）"]
[null,null,"token",null,null,"サーバーの認証トークン。具体的な値は別途。"]
[null,"・オプションパラメータ",null,null,"メールによって必須扱い"]
[null,null,"season_ticket_contract_entry_record_no",{"$nulls":4},"レコード番号（定期申込・予約アプリ）",{"$nulls":5},"定期申込に関するメールに関しては必須"]
[null,null,"application_no",{"$nulls":4},"申請番号（各種承認アプリ）",{"$nulls":5},"各種申請に関するメールに関しては必須"]
[]
[null,"・レスポンス"]
[null,null,"result",null,null,"['SUCCESS','FAILED']"]

{"sheet":"文面構成","index":3,"n_rows":6,"n_cols":2,"rows_kept":6,"cut":false,"hidden":false,"merged":[]}
[]
[null,"ヘッダ、コンテンツ、フッターの３部構成で"]
[null,"メール文章を組み立てる"]
[]
[null,"ヘッダー、フッターはどのメールも共通の内容。"]
[null,"コンテンツのみが、各メールで変わってくる。"]

{"sheet":"ヘッダー","index":4,"n_rows":7,"n_cols":6,"rows_kept":7,"cut":false,"hidden":false,"merged":[[2,3,3,3],[2,4,3,4],[2,5,3,5]]}
[]
[null,"メンバー向け"]
[null,null,null,"必須","　データ内容","出力条件・サイズ"]
[]
[null,"××××様",null,"●"]
[null,null,null,"●"]
[null,"一般財団法人 京都市都市整備公社 定期担当です。",null,"●"]

{"sheet":"フッター","index":5,"n_rows":13,"n_cols":6,"rows_kept":13,"cut":false,"hidden":false,"merged":[[2,3,3,3],[2,4,3,4],[2,5,3,5]]}
[]
[null,"メンバー向け"]
[null,null,null,"必須","　データ内容","出力条件・サイズ"]
[]
[null,"---------------------------------------------------------",null,"●"]
[null,"一般財団法人 京都市都市整備公社",null,"●"]
[null,"（登録番号：T7130005012806）",null,"●"]
[null,"定期担当",null,"●"]
[null,"Mail：kyoto-kosha@kyotopublic.or.jp",null,"●"]
[null,"URL：https://www.kyotopublic.or.jp/teiki-parking/【月極定期駐車場ナビ】",null,"●"]
[null,"TEL：0120-593-418（土日祝除く 8:30〜17:15）",null,"●"]
[null,"※お問い合わせ、返信の際は確認のため必ず「お名前」「駐車場名」「新規 or 契約中」をお伝え下さいますようお願い致します。",null,"●"]
[null,"※定期利用取扱事項・HP、場内の案内表示等を遵守下さいますようお願い致します。",null,"●"]

{"sheet":"パスワードリセット","index":6,"n_rows":6,"n_cols":6,"rows_kept":6,"cut":false,"hidden":false,"merged":[[0,3,1,3],[0,4,1,4],[0,5,1,5]]}
["一覧",null,null,"必須","　データ内容","出力条件・サイズ"]
[]
[null,"下記URLからパスワードの変更を行ってください。",null,"●"]
[null,null,null,"●"]
[null,"https://XXXXXXXXXX",null,"●"]
[null,null,null,"●"]

{"sheet":"メールアドレス変更","index":7,"n_rows":6,"n_cols":6,"rows_kept":6,"cut":false,"hidden":false,"merged":[[0,3,1,3],[0,4,1,4],[0,5,1,5]]}
["一覧",null,null,"必須","　データ内容","出力条件・サイズ"]
[]
[null,"下記URLにアクセスすることで、メールアドレスの変更手続きを完了することができます。",null,"●"]
[null,null,null,"●"]
[null,"https://XXXXXXXXXX",null,"●"]
[null,null,null,"●"]

{"sheet":"車庫証明申請受付","index":8,"n_rows":51,"n_cols":6,"rows_kept":51,"cut":false,"hidden":false,"merged":[[0,3,1,3],[0,4,1,4],[0,5,1,5]]}
["一覧",null,null,"必須","　データ内容","出力条件・サイズ"]
[]
[null,"こちらのメールは【自動返信】メールです。",null,"●"]
[null,"内容を確認後、車庫証明書を作成し郵送いたします。",null,null,null,"◆支払方法で「振込」以外を選択した場合"]
[null,"お振込確認後、車庫証明書を作成し郵送いたします。",null,null,null,"◆支払方法で「振込」を選択した場合"]
[null,"土日祝・年末年始を除き 4 営業日後までに郵便が届かない場合には、お手数ですが下記連絡先までお問い合わせ下さい。",null,"●"]
[null,null,null,"●"]
[null,"-------------------------------------------------------------------------------------",null,"●"]
[null,"■申込内容■",null,"●"]
[null,null,null,"●"]
[null,"◆氏名",null,"●"]
[null,"××××",null,"●"]
[null,null,null,"●"]
[null,"◆郵便番号",null,"●"]
[null,"××××",null,"●"]
[null,null,null,"●"]
[null,"◆住所",null,"●"]
[null,"××××",null,"●"]
[null,null,null,"●"]
[null,"◆電話番号",null,"●"]
[null,"××××",null,"●"]
[null,null,null,"●"]
[null,"◆車両番号",null,null,null,"入力がある場合"]
[null,"××××"]
[]
[null,"◆車台番号",null,null,null,"入力がある場合"]
[null,"××××"]
[null,null,null,"●"]
[null,"◆支払方法",null,"●","「口座振替」選択時は自動で次回の振替に乗せることは出来ますか。"]
[null,"××××",null,"●"]
[null,null,null,"●"]
[null,"◆振込先",null,null,null,"◆支払方法で「振込」を選択された場合"]
[null,"証明書発行には2か月以上のご契約期間が必要になります。",null,null,null,"←　申請時に払い済み期間が2か月未満の場合"]
[null,"発行手数料3,000円を○○年○月○日までに下記口座までお振込みください。",null,null,null,"←　申請時に払い済み期間が2か月以上の場合"]
[null,"月極料金○○円と発行手数料3,000円の合算○○円を○○年○月○日までに下記口座までお振込みください。",null,null,null,"←　申請時に払い済み期間が2か月未満の場合"]
[]
[null,"銀行：ゆうちょ銀行"]
[null,"店名：四四八（ヨンヨンハチ）"]
[null,"店番：４４８"]
[null,"預金種目：普通預金 口座番号：３０３２８３２"]
[null,"一般財団法人 京都市都市整備公社"]
[null,"ザイ）キヨウトシトシセイビコウシヤ"]
[]
[null,"＊ゆうちょ銀行の口座をお持ちの方はこちら"]
[null,"記号：１４４２０ 番号：３０３２８３２１"]
[]
[null,"◆宛先郵便番号",null,null,null,"入力がある場合"]
[null,"××××"]
[]
[null,"◆宛先住所",null,null,null,"入力がある場合"]
[null,"××××"]

{"sheet":"定期券再発行申請受付","index":9,"n_rows":26,"n_cols":6,"rows_kept":26,"cut":false,"hidden":false,"merged":[[0,3,1,3],[0,4,1,4],[0,5,1,5]]}
["一覧",null,null,"必須","　データ内容","出力条件・サイズ"]
[]
[null,"こちらのメールは【自動返信】メールです。",null,"●"]
[null,"内容を確認後、定期券を再発行し郵送いたします。",null,"●"]
[null,"土日祝・年末年始を除き 4 営業日後までに郵便が届かない場合には、お手数ですが下記連絡先までお問い合わせ下さい。",null,"●"]
[null,null,null,"●"]
[null,"-------------------------------------------------------------------------------------",null,"●"]
[null,"■申込内容■",null,"●"]
[null,"◆駐車場",null,"●"]
[null,"××××",null,"●"]
[null,null,null,"●"]
[null,"◆氏名",null,"●"]
[null,"××××",null,"●"]
[null,null,null,"●"]
[null,"◆郵便番号",null,"●"]
[null,"××××",null,"●"]
[null,null,null,"●"]
[null,"◆住所",null,"●"]
[null,"××××",null,"●"]
[null,null,null,"●"]
[null,"◆再発行理由",null,"●"]
[null,"××××",null,"●"]
[null,null,null,"●"]
[null,"◆備考",null,"●"]
[null,"××××",null,"●"]
[null,null,null,"●"]

{"sheet":"シール再発行申請受付","index":10,"n_rows":26,"n_cols":6,"rows_kept":26,"cut":false,"hidden":false,"merged":[[0,3,1,3],[0,4,1,4],[0,5,1,5]]}
["一覧",null,null,"必須","　データ内容","出力条件・サイズ"]
[]
[null,"こちらのメールは【自動返信】メールです。",null,"●"]
[null,"内容を確認後、シールを再発行し郵送いたします。",null,"●"]
[null,"土日祝・年末年始を除き 4 営業日後までに郵便が届かない場合には、お手数ですが下記連絡先までお問い合わせ下さい。",null,"●"]
[null,null,null,"●"]
[null,"-------------------------------------------------------------------------------------",null,"●"]
[null,"■申込内容■",null,"●"]
[null,"◆駐車場",null,"●"]
[null,"××××",null,"●"]
[null,null,null,"●"]
[null,"◆氏名",null,"●"]
[null,"××××",null,"●"]
[null,null,null,"●"]
[null,"◆郵便番号",null,"●"]
[null,"××××",null,"●"]
[null,null,null,"●"]
[null,"◆住所",null,"●"]
[null,"××××",null,"●"]
[null,null,null,"●"]
[null,"◆再発行理由",null,"●"]
[null,"××××",null,"●"]
[null,null,null,"●"]
[null,"◆備考",null,"●"]
[null,"××××",null,"●"]
[null,null,null,"●"]

{"sheet":"車両番号・防犯登録番号変更受付","index":11,"n_rows":26,"n_cols":6,"rows_kept":26,"cut":false,"hidden":false,"merged":[[0,3,1,3],[0,4,1,4],[0,5,1,5]]}
["一覧",null,null,"必須","　データ内容","出力条件・サイズ"]
[]
[null,"こちらのメールは【自動返信】メールです。",null,"●"]
[null,"内容を確認後、車両番号・防犯登録番号変更完了メールを送付いたします。",null,"●"]
[null,"土日祝・年末年始を除き 4 営業日後までに連絡が無い場合には、お手数ですが下記連絡先までお問い合わせ下さい。",null,"●"]
[null,null,null,"●"]
[null,"-------------------------------------------------------------------------------------",null,"●"]
[null,"■申込内容■",null,"●"]
[null,"◆駐車場",null,"●"]
[null,"××××",null,"●"]
[null,null,null,"●"]
[null,"◆氏名",null,"●"]
[null,"××××",null,"●"]
[null,null,null,"●"]
[null,"◆（変更後）車両番号",null,"●",null,"変更ある場合"]
[null,"××××",null,"●"]
[null,null,null,"●"]
[null,"◆（変更後）防犯登録番号",null,"●",null,"変更ある場合"]
[null,"××××",null,"●"]
[null,null,null,"●"]
[null,"◆変更日",null,"●"]
[null,"××××",null,"●"]
[null,null,null,"●"]
[null,"◆備考",null,"●"]
[null,"××××",null,"●"]
[null,null,null,"●"]

{"sheet":"車両番号・防犯登録番号変更完了","index":12,"n_rows":24,"n_cols":6,"rows_kept":24,"cut":false,"hidden":false,"merged":[[0,3,1,3],[0,4,1,4],[0,5,1,5]]}
["一覧",null,null,"必須","　データ内容","出力条件・サイズ"]
[]
[null,"以下の内容で車両番号・防犯登録番号変更手続きが完了いたしました。",null,"●"]
[null,null,null,"●"]
[null,"-------------------------------------------------------------------------------------",null,"●"]
[null,"■申込内容■",null,"●"]
[null,"◆駐車場",null,"●"]
[null,"××××",null,"●"]
[null,null,null,"●"]
[null,"◆氏名",null,"●"]
[null,"××××",null,"●"]
[null,null,null,"●"]
[null,"◆（変更後）車両番号",null,"●",null,"変更ある場合"]
[null,"××××",null,"●"]
[null,null,null,"●"]
[null,"◆（変更後）防犯登録番号",null,"●",null,"変更ある場合"]
[null,"××××",null,"●"]
[]
[null,"◆変更日",null,"●"]
[null,"××××",null,"●"]
[null,null,null,"●"]
[null,"◆備考",null,"●"]
[null,"××××",null,"●"]
[null,null,null,"●"]

{"sheet":"利用者情報変更受付","index":13,"n_rows":23,"n_cols":6,"rows_kept":23,"cut":false,"hidden":false,"merged":[[0,3,1,3],[0,4,1,4],[0,5,1,5]]}
["一覧",null,null,"必須","　データ内容","出力条件・サイズ"]
[]
[null,"こちらのメールは【自動返信】メールです。",null,"●"]
[null,"内容を確認後、利用者情報変更完了メールを送付いたします。",null,"●"]
[null,"土日祝・年末年始を除き 4 営業日後までに連絡が無い場合には、お手数ですが下記連絡先までお問い合わせ下さい。",null,"●"]
[null,null,null,"●"]
[null,"-------------------------------------------------------------------------------------",null,"●"]
[null,"■申込内容■",null,"●"]
[null,"◆氏名",null,"●"]
[null,"××××",null,"●"]
[null,null,null,"●"]
[null,"◆郵便番号",null,"●"]
[null,"××××",null,"●"]
[null,null,null,"●"]
[null,"◆住所",null,"●"]
[null,"××××",null,"●"]
[null,null,null,"●"]
[null,"◆電話番号",null,"●"]
[null,"××××",null,"●"]
[null,null,null,"●"]
[null,"◆備考",null,"●"]
[null,"××××",null,"●"]
[null,null,null,"●"]

{"sheet":"利用者情報変更完了","index":14,"n_rows":21,"n_cols":6,"rows_kept":21,"cut":false,"hidden":false,"merged":[[0,3,1,3],[0,4,1,4],[0,5,1,5]]}
["一覧",null,null,"必須","　データ内容","出力条件・サイズ"]
[]
[null,"以下の内容で利用者情報変更手続きが完了いたしました。",null,"●"]
[null,null,null,"●"]
[null,"-------------------------------------------------------------------------------------",null,"●"]
[null,"■申込内容■",null,"●"]
[null,"◆氏名",null,"●"]
[null,"××××",null,"●"]
[null,null,null,"●"]
[null,"◆郵便番号",null,"●"]
[null,"××××",null,"●"]
[null,null,null,"●"]
[null,"◆住所",null,"●"]
[null,"××××",null,"●"]
[null,null,null,"●"]
[null,"◆電話番号",null,"●"]
[null,"××××",null,"●"]
[null,null,null,"●"]
[null,"◆備考",null,"●"]
[null,"××××",null,"●"]
[null,null,null,"●"]

{"sheet":"プラン変更受付","index":15,"n_rows":20,"n_cols":6,"rows_kept":20,"cut":false,"hidden":false,"merged":[[0,3,1,3],[0,4,1,4],[0,5,1,5]]}
["一覧",null,null,"必須","　データ内容","出力条件・サイズ"]
[]
[null,"こちらのメールは【自動返信】メールです。",null,"●"]
[null,"内容を確認後、プラン更完了メールを送付いたします。",null,"●"]
[null,"土日祝・年末年始を除き 4 営業日後までに連絡が無い場合には、お手数ですが下記連絡先までお問い合わせ下さい。",null,"●"]
[null,null,null,"●"]
[null,"-------------------------------------------------------------------------------------",null,"●"]
[null,"■申込内容■",null,"●"]
[null,"◆駐車場",null,"●"]
[null,"××××",null,"●"]
[null,null,null,"●"]
[null,"◆氏名",null,"●"]
[null,"××××",null,"●"]
[null,null,null,"●"]
[null,"◆変更先プラン",null,"●"]
[null,"××××",null,"●"]
[null,null,null,"●"]
[null,"◆備考",null,"●"]
[null,"××××",null,"●"]
[null,null,null,"●"]

{"sheet":"プラン変更完了","index":16,"n_rows":18,"n_cols":6,"rows_kept":18,"cut":false,"hidden":false,"merged":[[0,3,1,3],[0,4,1,4],[0,5,1,5]]}
["一覧",null,null,"必須","　データ内容","出力条件・サイズ"]
[]
[null,"以下の内容でプラン変更手続きが完了いたしました。",null,"●"]
[null,null,null,"●"]
[null,"-------------------------------------------------------------------------------------",null,"●"]
[null,"■申込内容■",null,"●"]
[null,"◆駐車場",null,"●"]
[null,"××××",null,"●"]
[null,null,null,"●"]
[null,"◆氏名",null,"●"]
[null,"××××",null,"●"]
[null,null,null,"●"]
[null,"◆変更先プラン",null,"●"]
[null,"××××",null,"●"]
[null,null,null,"●"]
[null,"◆備考",null,"●"]
[null,"××××",null,"●"]
[null,null,null,"●"]

{"sheet":"解約申請","index":17,"n_rows":21,"n_cols":6,"rows_kept":21,"cut":false,"hidden":false,"merged":[[0,3,1,3],[0,4,1,4],[0,5,1,5]]}
["一覧",null,null,"必須","　データ内容","出力条件・サイズ"]
[]
[null,"こちらのメールは【自動返信】メールのため現在、ご解約は確定しておりません。",null,"●"]
[null,"担当者確認後、解約申請完了メールをお送り致します。",null,"●"]
[null,"土日祝・年末年始を除き 4 営業日後までに連絡が無い場合には、お手数ですが下記連絡先までお問い合わせ下さい。",null,"●"]
[null,null,null,"●"]
[null,"-------------------------------------------------------------------------------------",null,"●"]
[null,"■申込内容■",null,"●"]
[null,null,null,"●"]
[null,"◆定期利用者",null,"●"]
[null,"××××",null,"●"]
[null,null,null,"●"]
[null,"◆駐車場名　",null,"●","駐車場マスタ.駐車場名"]
[null,"××××",null,"●"]
[null,null,null,"●"]
[null,"◆利用車両番号",null,null,null,"入力がある場合"]
[null,"××××"]
[]
[null,"◆解約予定日　",null,"●","各種申請.解約希望日"]
[null,"YYYY/MM/DD",null,"●"]
[null,null,null,"●"]

{"sheet":"解約承認","index":18,"n_rows":27,"n_cols":6,"rows_kept":27,"cut":false,"hidden":false,"merged":[[0,3,1,3],[0,4,1,4],[0,5,1,5]]}
["一覧",null,null,"必須","　データ内容","出力条件・サイズ"]
[]
[null,"弊社駐車場をご利用頂き誠にありがとうございます。",null,"●"]
[null,"以下の内容にて、ご解約手続きが完了しました。下記内容を必ずご確認下さい。",null,"●"]
[null,"-------------------------------------------------------------------------------------",null,"●"]
[null,"■申込内容■",null,"●"]
[null,null,null,"●"]
[null,"◆定期利用者",null,"●"]
[null,"××××",null,"●"]
[null,null,null,"●"]
[null,"◆駐車場名　",null,"●","駐車場マスタ.駐車場名"]
[null,"××××",null,"●"]
[null,null,null,"●"]
[null,"◆利用車両番号",null,null,null,"入力がある場合"]
[null,"××××"]
[]
[null,"◆解約予定日　",null,"●","各種申請.解約希望日"]
[null,"YYYY/MM/DD",null,"●"]
[null,null,null,"●"]
[null,"※注1【解約日までに車両等を必ずご移動して下さい。次の契約者の方のご迷惑となりますので 車両他荷物など残置がないよう必ずご確認下さい。】",null,"●"]
[null,"※注2【弊社から送付しています自転車・バイク車両貼付の定期シールは解約日以降に必ず剥離して下さい。】",null,"●"]
[null,"※注3【弊社から送付しています定期券等がございましたら、現地返却ボックス又は弊社宛てに返送して下さい。】",null,"●"]
[null,null,null,"●"]
[null,"ご不明な点等ございましたら担当までご連絡下さい。",null,"●"]
[null,"弊社駐車場をご利用頂き誠にありがとうございました。",null,"●"]
[null,"今後ともご愛顧賜りますよう宜しくお願い致します。",null,"●"]
[null,null,null,"●"]

{"sheet":"契約期間満了","index":19,"n_rows":27,"n_cols":6,"rows_kept":27,"cut":false,"hidden":false,"merged":[[0,3,1,3],[0,4,1,4],[0,5,1,5]]}
["一覧",null,null,"必須","　データ内容","出力条件・サイズ"]
[]
[null,"弊社駐車場をご利用頂き誠にありがとうございます。",null,"●"]
[null,"以下の内容にて、ご契約期間が満了しました。下記内容を必ずご確認下さい。",null,"●"]
[null,"-------------------------------------------------------------------------------------",null,"●"]
[null,"■契約内容■",null,"●"]
[null,null,null,"●"]
[null,"◆定期利用者",null,"●"]
[null,"××××",null,"●"]
[null,null,null,"●"]
[null,"◆駐車場名　",null,"●","駐車場マスタ.駐車場名"]
[null,"××××",null,"●"]
[null,null,null,"●"]
[null,"◆利用車両番号",null,null,null,"入力がある場合"]
[null,"××××"]
[]
[null,"◆解約日　",null,"●","各種申請.解約希望日"]
[null,"YYYY/MM/DD",null,"●"]
[null,null,null,"●"]
[null,"※注1【解約日以降の駐車場のご利用はご遠慮下さい。次の契約者の方のご迷惑となりますので 車両他荷物など残置がないようお願いします。】",null,"●"]
[null,"※注2【弊社から送付しています自転車・バイク車両貼付の定期シールは解約日以降に必ず剥離して下さい。】",null,"●"]
[null,"※注3【弊社から送付しています定期券等がございましたら、現地返却ボックス又は弊社宛てに返送して下さい。】",null,"●"]
[null,null,null,"●"]
[null,"ご不明な点等ございましたら担当までご連絡下さい。",null,"●"]
[null,"弊社駐車場をご利用頂き誠にありがとうございました。",null,"●"]
[null,"今後ともご愛顧賜りますよう宜しくお願い致します。",null,"●"]
[null,null,null,"●"]

{"sheet":"申込申請","index":20,"n_rows":59,"n_cols":6,"rows_kept":59,"cut":false,"hidden":false,"merged":[[0,3,1,3],[0,4,1,4],[0,5,1,5]]}
["一覧",null,null,"必須","　データ内容","出力条件・サイズ"]
[]
[null,"この度は、弊社駐車場・駐輪場へのお申込を頂きありがとうございます。",null,"●"]
[null,null,null,"●"]
[null,"こちらのメールは【自動返信】メールのため現在、ご契約は確定しておりません。",null,"●"]
[null,"担当者確認後、利用確認事項メールをお送り致します。※注１",null,"●"]
[null,"土日祝・年末年始を除き 4 営業日後までに連絡が無い場合には、お手数ですが下記連絡先までお問い合わせ下さい。",null,"●"]
[null,"【順次受付中のため、こちらのメールを受け取られても状況により満車になっている場合がござ います。予めご了承下さい。】",null,"●"]
[null,null,null,"●"]
[null,"※注１■【重要】",null,"●"]
[null,"「満車」の駐車場・駐輪場につきましては、利用確認事項メールはお送り致しておりません。",null,"●"]
[null,"ご予約にてシステム受付しておりますので、空き次第のご連絡となります。",null,"●"]
[null,"（申込順の対応となりますので予めご了承下さい。）",null,"●"]
[null,null,null,"●"]
[null,"※注２■【重要】",null,"●"]
[null,"「@kyotopublic.or.jp」からのメールが、迷惑メールフォルダ・削除フォルダに入っていないかご 確認下さい。",null,"●"]
[null,"※gmail、yahoo メール等にて受信エラーが頻発しております。",null,"●"]
[null,"迷惑メール対策やドメイン指定受信等を設定している方のみならず設定の覚えがない方も、確認メールが受信されますよう【@kyotopublic.or.jp】のドメイン登録をお願い致します。",null,"●"]
[null,"◆ドメイン登録の設定をされていない場合において確認メールが届かないことがありましても、 弊社では分かりかねますため必ず設定をお願い致します。◆",null,"●"]
[null,"入力されたメールアドレス、携帯番号及び住所（番地・部屋番号等）に不備があると登録ができ かねますので、その際はお手数ですが再度申請をお願い致します。",null,"●"]
[null,null,null,"●"]
[null,"■土日祝日・年末年始は休業しております。",null,"●"]
[null,"その他申込状況により、利用確認事項メールの送付にお時間がかかる場合がございます。ご理解のほどよろしくお願い致します。",null,"●"]
[null,null,null,"●"]
[null,"■最新の駐車場・駐輪場の情報をご確認お願い致します。",null,"●"]
[null,"各駐車場・駐輪場において、申込時より料金変更や取扱い変更を実施する場合がございますため、弊社 HP・現地の案内をご確認下さいますようお願い致します。",null,"●"]
[null,"なお、お問い合わせの際は確認のため駐車場・駐輪場名の他、お名前等詳細についてもお知らせ下さい。",null,"●"]
[null,null,null,"●"]
[null,"【お問い合わせフォーム】",null,"●"]
[null,"https://www.kyotopublic.or.jp/teiki-parking/contact/",null,"●","現行は赤画面のお問合せURLを記載。今後はマイページのお問合せのURLを記載？"]
[null,null,null,"●"]
[null,"-------------------------------------------------------------------------------------",null,"●"]
[null,"◆駐車場",null,"●"]
[null,"××××",null,"●"]
[null,null,null,"●"]
[null,"◆種別",null,"●"]
[null,"××××",null,"●"]
[null,null,null,"●"]
[null,"◆プラン",null,"●"]
[null,"××××",null,"●"]
[null,null,null,"●"]
[null,"◆定期券の選択",null,null,null,"IC定期導入駐輪場のみ"]
[null,"××××"]
[]
[null,"◆お名前",null,"●"]
[null,"××××",null,"●"]
[null,null,null,"●"]
[null,"◆フリガナ",null,"●"]
[null,"××××",null,"●"]
[null,null,null,"●"]
[null,"◆電話番号",null,"●"]
[null,"××××",null,"●"]
[null,null,null,"●"]
[null,"◆メールアドレス",null,"●"]
[null,"××××",null,"●"]
[null,null,null,"●"]
[null,"◆その他ご要望",null,"●"]
[null,"××××",null,"●"]
[null,null,null,"●"]

{"sheet":"申込受付","index":21,"n_rows":73,"n_cols":6,"rows_kept":73,"cut":false,"hidden":false,"merged":[[0,3,1,3],[0,4,1,4],[0,5,1,5]]}
["一覧",null,null,"必須","　データ内容","出力条件・サイズ"]
[]
[null,"定期利用取扱事項を同意のうえ、定期利用申込みを頂き誠にありがとうございます。 ",null,"●"]
[null,"定期利用について、以下の内容にてお手続きいたしますのでご確認下さい。",null,"●"]
[null,null,null,"●"]
[null,"-------------------------------------------------------------------------------------",null,"●"]
[null,"■申込内容■",null,"●"]
[null,null,null,"●"]
[null,"◆定期利用者",null,"●"]
[null,"お名前：××××",null,"●"]
[null,"フリガナ：××××",null,"●"]
[null,null,null,"●"]
[null,"◆駐車場",null,"●"]
[null,"××××",null,"●"]
[null,null,null,"●"]
[null,"◆種別",null,"●"]
[null,"××××",null,"●"]
[null,null,null,"●"]
[null,"◆プラン",null,"●"]
[null,"××××",null,"●"]
[null,null,null,"●"]
[null,"◆定期券の選択",null,null,null,"IC定期導入の駐輪場のみ"]
[null,"××××"]
[]
[null,"◆利用車両番号",null,null,null,"申込時に記載ある場合"]
[null,"××××"]
[]
[null,"◆利用開始日（希望）",null,"●"]
[null,"××××",null,"●"]
[null,null,null,"●"]
[null,"◆◆お支払方法及び定期駐車料金",null,"●"]
[null,"お支払方法：××××",null,"●"]
[null,"定期駐車料金：××××",null,"●","月極料金が税込みの金額なのですが、インボイス制度では「税込」と「適用税率」「消費税額」を記載しなくてはいけないです。 XXXX円（消費税等含む，適用税率1 0% 　消費税額 XX円）のように表示したいです。"]
[null,"※料金は利用日までの前払いのため、○月日割分○○円と○月分○○円 （合計○○円）を○年○月○日までにお振込下さい。（手数料は振込者負担でお願い致します。）",null,"●","車室情報に「日割額」「初回請求分」「契約金額」の情報がありますので、それを引っ張ってきて、振込期日は例えばメール送信日から3営業日後の日付を自動入力できないでしょうか。"]
[null,null,null,"●"]
[null,"銀行：ゆうちょ銀行",null,null,null,"駐輪場"]
[null,"店名：四四八（ヨンヨンハチ）"]
[null,"店番：４４８ 預金種目：普通預金 口座番号：４４９８３３１"]
[null,"一般財団法人 京都市都市整備公社"]
[null,"ザイ）キヨウトシトシセイビコウシヤ"]
[]
[null,"＊ゆうちょ銀行の口座をお持ちの方はこちら"]
[null,"記号：１４４２０ 番号：４４９８３３１１"]
[]
[null,"銀行：ゆうちょ銀行",null,null,null,"駐車場、駐輪場（定期専用）"]
[null,"店名：四四八（ヨンヨンハチ）"]
[null,"店番：４４８"]
[null,"預金種目：普通預金 口座番号：３０３２８３２"]
[null,"一般財団法人 京都市都市整備公社"]
[null,"ザイ）キヨウトシトシセイビコウシヤ"]
[]
[null,"＊ゆうちょ銀行の口座をお持ちの方はこちら"]
[null,"記号：１４４２０ 番号：３０３２８３２１"]
[null,null,null,"●"]
[null,"■申込者名でお振込下さい。（申込者名以外でお振込の場合は事前にご連絡下さい。）",null,"●"]
[null,"■郵送物がある場合、お振込確認後に普通郵便で発送いたします。（休日除き約 4 営業日の日数を要します。）",null,"●"]
[null,"■次回以降のお支払いは【口座振替】となります。お振込確認後、ご登録の携帯番号あてにショ ートメッセージを送りますので、お早めに振替口座のご登録をお願いします。",null,"●","「お振込み確認後・・・」以降の文章はマイページ上でSMBCの口座登録できるのであれば変更が必要か。例えば「マイページの「振替口座登録」からお早めにご登録をお願いします。」\n・今後クレジット導入した際はどうするか。赤画面で支払方法選択するのでそこと連動で表記させる？"]
[null,"■（お車の方）車庫証明書発行希望の方は、マイページ「車庫証明書申請」からご申請下さい。",null,"●"]
[null,"※新規申込時に申し出される方は2ケ月分以上の駐車料金前納が必要となります。",null,"●"]
[null,null,null,"●"]
[null,"◆◆備考",null,"●"]
[null,"指定期日までに入金確認ができない場合、キャンセルとさせて頂きます。",null,"●"]
[null,"万が一お振込が遅れそうな場合やお振込後に定期利用承認メールが届かない場合には、下記の連絡先まで必ずご連絡下さい。",null,"●"]
[null,"その他、ご不明な点等がございましたら、下記の連絡先までご連絡下さい。",null,"●"]
[null,null,null,"●"]
[null,"◆◆解約について",null,"●"]
[null,"解約の場合は、必ず解約月の10日までに、マイページ「解約申請」よりご申請下さい。",null,"●"]
[null,"※解約日は末日のみとなります。",null,null,null,"交野市駐輪場以外"]
[null,"※解約日は15日又は末日のみとなります。",null,null,null,"交野市駐輪場"]
[null,"※解約申請が10日を過ぎると、翌月末でのご解約となります。",null,null,null,"交野市駐輪場以外"]
[null,"※金融機関での振替締日の状況により、口座振替が実施される場合がございます。",null,"●"]
[null,"（一部駐輪場では取扱いが異なります。詳しくはマイページ「解約申請」をご確認下さい。）",null,"●"]
[null,null,null,"●"]

{"sheet":"申込承認","index":22,"n_rows":61,"n_cols":6,"rows_kept":61,"cut":false,"hidden":false,"merged":[[0,3,1,3],[0,4,1,4],[0,5,1,5]]}
["一覧",null,null,"必須","　データ内容","出力条件・サイズ"]
[]
[null,"ご入金を確認致しました。誠にありがとうございます。",null,"●"]
[null,"以下の内容にて定期利用を承認し、契約完了としますので、必ずご確認下さい。",null,"●"]
[null,null,null,"●"]
[null,"◆次回お支払より【口座振替】となります。",null,"●"]
[null,"ご登録の携帯番号あてにショ ートメッセージを送りますので、お早めに振替口座のご登録をお願いします。",null,"●","「お振込み確認後・・・」以降の文章はマイページ上でSMBCの口座登録できるのであれば変更が必要か。例えば「マイページの「振替口座登録」からお早めにご登録をお願いします。」・今後クレジット導入した際はどうするか。赤画面で支払方法選択するのでそこと連動で表記させる？"]
[null,"（法人契約のお客様には、別途口座振替依頼書を郵送致します。）",null,"●"]
[null,null,null,"●"]
[null,"◆【口座振替】は、翌月分の定期駐車料金の【前払い】となります。",null,"●"]
[null,"（口座登録状況により複数月分を合算振替する場合がございます。）",null,"●"]
[null,"※定期駐車料金の未払が続く場合、ご利用をお断りする場合がございます。お支払い状況には十分にご注意下さい。",null,"●"]
[null,null,null,"●"]
[null,"◆◆解約について",null,"●"]
[null,"解約の場合は、必ず解約月の10日までに、マイページ「解約申請」よりご申請下さい。",null,"●"]
[null,"※解約日は末日のみとなります。",null,null,null,"交野市駐輪場以外"]
[null,"※解約日は15日又は末日のみとなります。",null,null,null,"交野市駐輪場"]
[null,"※解約申請が10日を過ぎると、翌月末でのご解約となります。",null,null,null,"交野市駐輪場以外"]
[null,"※金融機関での振替締日の状況により、口座振替が実施される場合がございます。",null,"●"]
[null,"（一部駐輪場では取扱いが異なります。詳しくはマイページ「解約申請」をご確認下さい。）",null,"●"]
[null,null,null,"●"]
[null,"◆お客様情報に変更がございましたら、マイページ各種変更申請よりご申請下さい。",null,"●"]
[null,null,null,"●"]
[null,"◆車庫証明書をご希望の場合は、マイページ「車庫証明書申請」よりご申請下さい",null,null,null,"駐車場のみ"]
[]
[null,"◆お客様へのご連絡は【「マイページへの通知」「メール」「ショートメッセージ」】が基本となります。",null,"●"]
[null,"迷惑メールフォルダの確認及び迷惑メール対策やドメイン指定受信等を設定している方は、弊社 からの連絡メールが必ず受信できるよう、【@kyotopublic.or.jp】の登録をお願い致します。 ドメイン登録の設定をされていない場合、連絡メールが正しく届かないことがございます。",null,"●"]
[null,null,null,"●"]
[null,"-------------------------------------------------------------------------------------",null,"●"]
[null,"■定期利用承認■",null,"●"]
[null,null,null,"●"]
[null,"◆定期利用者",null,"●"]
[null,"お名前：××××",null,"●"]
[null,"フリガナ：××××",null,"●"]
[null,null,null,"●"]
[null,"◆駐車場",null,"●"]
[null,"××××",null,"●"]
[null,null,null,"●"]
[null,"◆種別",null,"●"]
[null,"××××",null,"●"]
[null,null,null,"●"]
[null,"◆プラン",null,"●"]
[null,"××××",null,"●"]
[null,null,null,"●"]
[null,"◆定期券の選択",null,null,null,"IC定期導入の駐輪場のみ"]
[null,"××××"]
[]
[null,"◆利用車両番号",null,null,null,"申込時に記載ある場合"]
[null,"××××"]
[]
[null,"◆利用開始日（希望）",null,"●"]
[null,"××××",null,"●"]
[null,null,null,"●"]
[null,"◆お支払方法及び定期駐車料金",null,"●"]
[null,"お支払方法：××××",null,"●"]
[null,"定期駐車料金：××××",null,"●","月極料金が税込みの金額なのですが、インボイス制度では「税込」と「適用税率」「消費税額」を記載しなくてはいけないです。 XXXX円（消費税等含む，適用税率1 0% 　消費税額 XX円）のように表示したいです。"]
[null,null,null,"●"]
[null,"◆備考",null,"●"]
[null,"定期利用にあたり、必ず各駐車場・駐輪場ページ掲載の定期利用取扱事項と、ホームページ・メ ール及び現地の案内に従いご利用下さい。",null,"●"]
[null,"その他ご不明な点等がございましたら、下記の連絡先までご連絡下さい。",null,"●"]
[null,null,null,"●"]

{"sheet":"問い合わせ受付","index":23,"n_rows":23,"n_cols":6,"rows_kept":23,"cut":false,"hidden":false,"merged":[[0,3,1,3],[0,4,1,4],[0,5,1,5]]}
["一覧",null,null,"必須","　データ内容","出力条件・サイズ"]
[]
[null,"この度はお問い合わせ頂きましてありがとうございます。 "]
[null,"こちらのメールは【自動返信】メールです。",null,"●"]
[null,"担当者確認後、ご連絡致しますのでしばらくお待ち下さいますようお願い申し上げます。 ",null,"●"]
[null,"土日祝・年末年始を除き 4 営業日後までに連絡が無い場合には、お手数ですが下記連絡先までお問い合わせ下さい。",null,"●"]
[null,null,null,"●"]
[null,"よくあるお問い合わせ内容については、マイページ「FAQ」をご確認お願い致します。",null,"●"]
[null,null,null,"●"]
[null,"-------------------------------------------------------------------------------------",null,"●"]
[null,"■お問い合わせ内容■",null,"●"]
[null,"◆お名前",null,"●"]
[null,"××××",null,"●"]
[null,null,null,"●"]
[null,"◆電話番号",null,"●"]
[null,"××××",null,"●"]
[null,null,null,"●"]
[null,"◆メールアドレス",null,"●"]
[null,"××××",null,"●"]
[null,null,null,"●"]
[null,"◆お問い合わせ内容",null,"●"]
[null,"××××",null,"●"]
[null,null,null,"●"]

{"sheet":"口座登録催促","index":24,"n_rows":6,"n_cols":6,"rows_kept":6,"cut":false,"hidden":false,"merged":[[0,3,1,3],[0,4,1,4],[0,5,1,5]]}
["一覧",null,null,"必須","　データ内容","出力条件・サイズ"]
[]
[null,"下記URLから振替口座の登録を行ってください。",null,"●"]
[null,null,null,"●"]
[null,"https://XXXXXXXXXX",null,"●","マイページ上にSMBCの口座登録の入り口が出来ると聞いていますが、こちらには特定のURLがあるのでしょうか。"]
[null,null,null,"●"]

{"sheet":"口座振替登録失敗","index":25,"n_rows":8,"n_cols":6,"rows_kept":8,"cut":false,"hidden":false,"merged":[[0,3,1,3],[0,4,1,4],[0,5,1,5]]}
["一覧",null,null,"必須","　データ内容","出力条件・サイズ"]
[]
[null,"振替口座登録手続きをしていただきましたが、エラー等で登録が完了していません。",null,"●"]
[null,"お手数をおかけしますが、下記URLから再度振替口座登録を行ってください。",null,"●"]
[null,"（再登録の際は、金融機関での登録完了のご確認をお願いいたします。）"]
[null,null,null,"●"]
[null,"https://XXXXXXXXXX",null,"●","マイページ上にSMBCの口座登録の入り口が出来ると聞いていますが、こちらには特定のURLがあるのでしょうか。"]
[null,null,null,"●"]

{"sheet":"口座振替・未納者通知","index":26,"n_rows":26,"n_cols":6,"rows_kept":26,"cut":false,"hidden":false,"merged":[[0,3,1,3],[0,4,1,4],[0,5,1,5]]}
["一覧",null,null,"必須","　データ内容","出力条件・サイズ"]
[]
[null,"お名前××××　様",null,"●","共通のヘッター内容と重複するため、削除　岩渕","口座振替結果処理確定後　未納者へ通知"]
[null,"いつもご利用頂きありがとうございます。一般財団法人京都市都市整備公社です。",null,"●"]
[null,"駐車料金口座引落にて（資金不足or口座未登録）のため、未納となっております。",null,"●"]
[null,"前月までに（翌月分or翌年分or〇〇月分）を前納によりお支払い頂くため、次回口座引落にて合算にて引落しさせて",null,"●"]
[null,"頂きます。"]
[null,"27日（土日祝の場合、翌営業日）の前日には、口座に駐車料金を必ずご用意下さいますようお願い致します。",null,"●"]
[]
[null,"なお、本メールと行き違いで、既にご対応頂いている場合は何卒ご容赦頂けますと幸いです。",null,"●"]
[null,"ご確認のほど何卒宜しくお願い申し上げます。",null,"●"]
[]
[null,"※お支払い状況、お問い合わせ、その他各種お手続きはマイページから確認・申請頂けます。",null,"●"]
[null,"（初回のみ新規登録済のメールアドレスにてパスワード設定が必要となります。）",null,"●"]
[null,"https://XXXXXXXXXX",null,"●"]
[]
[null,"※振替口座登録がお済みでない方は、下記URLから速やかに振替口座登録を行って下さい。",null,"●"]
[null,"（登録の際は、金融機関での登録完了画面までお進み頂いている事をご確認下さい。）",null,"●"]
[null,"（金融機関登録の進捗状況により、合算での振替となります。）",null,"●"]
[null,"https://XXXXXXXXXX",null,"●"]
[]
[null,"一般財団法人 京都市都市整備公社",null,"●","共通のフッター内容と重複するため、削除　岩渕"]
[null,"定期担当",null,"●"]
[null,"（対応：平日8:30～17:15）",null,"●"]
[null,"※定期利用取扱事項・HP、場内の案内表示等を遵守下さいますようお願い致します。",null,"●"]
[null,"※郵送物につきましては、普通郵便にて約4営業日（土日祝除く）の日数を要しますので予めご了承下さい。",null,"●"]